bitfinex-derivatives/quotes_BTCF0:USTF0_20250207
["timestamp","ask_amount","ask_price","bid_price","bid_amount"]
[1738955102920,0.21225266,97677.0,97676.0,0.2046869]
[1738955104332,0.36160001,97699.0,97674.0,0.35976821]
[1738955104333,0.18273415,97685.0,97674.0,0.36076821]
[1738955104528,0.18273415,97685.0,97684.0,0.5654701]
[1738955104722,0.18273415,97685.0,97684.0,0.6419901]
[1738955106732,0.02560159,97700.0,97686.0,0.0511664]
[1738955107031,0.02560159,97700.0,97699.0,0.5654387]
[1738955107335,0.20836428,97700.0,97699.0,0.2811187]
[1738955108926,0.20836428,97700.0,97699.0,0.2056387]
[1738955109733,0.20836428,97700.0,97699.0,0.001]
[1738955109928,0.41300088,97700.0,97699.0,0.001]
[1738955110629,0.20836428,97700.0,97699.0,0.001]
[1738955111027,0.23023819,97700.0,97699.0,0.001]
[1738955111331,0.02560159,97700.0,97699.0,0.001]
[1738955112630,0.23023819,97700.0,97699.0,0.001]
[1738955113926,0.02560159,97700.0,97699.0,0.001]
[1738955114122,0.02560159,97700.0,97672.0,0.3608]
[1738955114431,0.5654701,97684.0,97668.0,0.2047032]
[1738955114631,0.5654701,97684.0,97676.0,0.01229023]
[1738955114827,0.5654701,97684.0,97620.0,0.12075941]
[1738955114828,0.2046848,97677.0,97620.0,0.12075941]
[1738955115032,0.3608,97667.0,97666.0,0.2047078]
[1738955115336,0.3608,97667.0,97660.0,0.2047203]
[1738955115734,0.2047213,97660.0,97651.0,0.36136]
[1738955115927,0.3608,97659.0,97651.0,0.3608]
[1738955116131,0.563,97659.0,97652.0,0.2047368]
[1738955116836,0.2047414,97650.0,97649.0,0.31810764]
[1738955117039,0.3608,97650.0,97649.0,0.31810764]
[1738955117630,0.3608,97650.0,97649.0,0.01216706]
[1738955117825,0.3608,97650.0,97649.0,0.02116706]
[1738955118330,0.5655414,97650.0,97649.0,0.02116706]
[1738955118533,0.5655414,97650.0,97649.0,0.00915358]
[1738955118741,0.6608,97650.0,97621.0,0.24449853]
[1738955119042,0.2047888,97628.0,97621.0,0.24449853]
[1738955119236,0.3608,97633.0,97621.0,0.24449853]
[1738955119237,0.3608,97622.0,97621.0,0.24449853]
[1738955120427,0.2206,97627.0,97621.0,0.24449853]
[1738955120636,0.3608,97643.0,97640.0,0.2047603]
[1738955120941,0.3608,97643.0,97641.0,0.2047591]
[1738955121142,0.2093,97648.0,97633.0,0.18124841]
[1738955121343,0.2093,97648.0,97646.0,0.2047488]
[1738955121543,0.2093,97648.0,97633.0,0.18124841]
[1738955121740,0.2093,97648.0,97640.0,0.2047608]
[1738955121938,0.2093,97648.0,97640.0,0.2077608]
[1738955122441,0.2093,97648.0,97646.0,0.002]
[1738955122651,0.2047477,97647.0,97646.0,0.002]
[1738955122834,0.2093,97648.0,97646.0,0.002]
[1738955123042,0.2093,97648.0,97640.0,0.2067613]
[1738955123738,0.2093,97648.0,97640.0,0.2047613]
[1738955124140,0.2093,97648.0,97634.0,0.3608]
[1738955124340,0.2093,97648.0,97641.0,0.2047595]
[1738955124949,0.00015358,97650.0,97640.0,0.002]
[1738955125148,0.00015358,97650.0,97649.0,0.2047434]
[1738955125848,0.00015358,97650.0,97644.0,0.2047526]
[1738955126448,0.00015358,97650.0,97641.0,0.002]
[1738955127242,0.00015358,97650.0,97644.0,0.204753]
[1738955127448,0.00015358,97650.0,97638.0,0.18124841]
[1738955127449,0.00015358,97650.0,97640.0,0.002]
[1738955127750,0.00015358,97650.0,97649.0,0.004]
[1738955128143,0.00015358,97650.0,97648.0,0.2047447]
[1738955128541,0.00015358,97650.0,97641.0,0.004]
[1738955128744,0.00015358,97650.0,97641.0,0.002]
[1738955128745,0.5655581,97642.0,97641.0,0.002]
[1738955128941,0.2047602,97641.0,97640.0,0.003]
[1738955129239,0.3104602,97641.0,97634.0,0.01195972]
[1738955129547,0.3104602,97641.0,97631.0,0.07643358]
[1738955129548,0.3608,97638.0,97631.0,0.07643358]
[1738955129938,0.3608,97638.0,97636.0,0.2047703]
[1738955130347,0.3608,97638.0,97637.0,0.2047686]
[1738955131446,0.00015358,97650.0,97637.0,0.002]
[1738955131649,0.00015358,97650.0,97644.0,0.2047534]
[1738955131841,0.00015358,97650.0,97640.0,0.18124841]
[1738955132048,0.3608,97643.0,97637.0,0.005]
[1738955132250,0.3608,97643.0,97637.0,0.012]
[1738955132451,0.3608,97643.0,97640.0,0.2047606]
[1738955133045,0.3608,97643.0,97640.0,0.1947606]
[1738955133454,0.3608,97643.0,97631.0,0.45012411]
[1738955133745,0.3608,97643.0,97631.0,0.44956411]
[1738955133951,0.3608,97643.0,97638.0,0.2047664]
[1738955134253,0.3608,97643.0,97631.0,0.44956411]
[1738955134254,0.3608,97643.0,97642.0,0.2047581]
[1738955135147,0.3608,97643.0,97637.0,0.005]
[1738955135148,0.2047581,97642.0,97638.0,0.002]
[1738955135344,0.4093581,97642.0,97638.0,0.002]
[1738955135543,0.2046,97642.0,97638.0,0.002]
[1738955136143,0.2046,97642.0,97631.0,0.37380411]
[1738955136144,0.5654,97642.0,97631.0,0.00067358]
[1738955136345,0.3608,97632.0,97631.0,0.00015358]
[1738955136948,0.5655791,97632.0,97631.0,0.00015358]
[1738955137550,0.5665791,97632.0,97631.0,0.00015358]
[1738955140757,0.5665791,97632.0,97631.0,2.42e-06]
[1738955142753,0.5655791,97632.0,97631.0,2.42e-06]
[1738955142956,0.5665791,97632.0,97631.0,2.42e-06]
[1738955144257,0.5655791,97632.0,97631.0,2.42e-06]
[1738955144556,0.5665791,97632.0,97631.0,2.42e-06]
[1738955145156,0.3618,97632.0,97631.0,2.42e-06]
[1738955146147,0.3608,97632.0,97631.0,2.42e-06]
[1738955146353,0.3618,97632.0,97631.0,2.42e-06]
[1738955147063,0.3608,97632.0,97631.0,0.00300242]
[1738955147559,0.3608,97632.0,97631.0,0.00600242]
[1738955147762,0.3608,97641.0,97631.0,0.00600242]
[1738955148263,0.3608,97641.0,97631.0,0.00300242]
[1738955148565,0.3608,97641.0,97631.0,0.00700242]
[1738955148756,0.1513875,97645.0,97644.0,0.204754]
[1738955149262,0.1513875,97645.0,97638.0,0.565566]
[1738955149463,0.00015358,97650.0,97638.0,0.204766]
[1738955149666,0.00015358,97650.0,97640.0,0.12089207]
[1738955150256,0.00015358,97650.0,97637.0,0.3608]
[1738955150662,0.20689588,97650.0,97637.0,0.3608]
[1738955151366,0.20789588,97650.0,97637.0,0.3608]
[1738955151664,0.3608,97640.0,97631.0,2.42e-06]
[1738955151855,0.3608,97632.0,97631.0,2.42e-06]
[1738955153667,0.3608,97632.0,97631.0,0.00300242]
[1738955154764,0.5655791,97632.0,97631.0,0.00300242]
[1738955154963,0.5655791,97632.0,97631.0,0.00600242]
[1738955155165,0.3608,97632.0,97631.0,0.00600242]
[1738955155359,0.3608,97632.0,97631.0,0.21078362]
[1738955156274,0.3608,97640.0,97639.0,0.2047644]
[1738955157262,0.3608,97640.0,97633.0,0.2047758]
[1738955157971,0.3608,97640.0,97632.0,0.3224]
[1738955158963,0.3608,97640.0,97635.0,0.2047723]
[1738955159373,0.3608,97640.0,97632.0,0.3224]
[1738955160065,0.3608,97640.0,97633.0,0.002]
[1738955160466,0.2047749,97634.0,97633.0,0.002]
[1738955160866,0.2047749,97634.0,97631.0,2.42e-06]
[1738955161066,0.3608,97640.0,97632.0,0.003]
[1738955161468,0.2047763,97634.0,97631.0,2.42e-06]
[1738955161676,0.2047763,97634.0,97633.0,0.011]
[1738955162769,0.2047763,97634.0,97633.0,0.006]
[1738955163470,0.2047791,97632.0,97631.0,2.42e-06]
[1738955163681,0.5655791,97632.0,97631.0,2.42e-06]
[1738955164183,0.6667791,97632.0,97631.0,2.42e-06]
[1738955165077,0.9667791,97632.0,97631.0,2.42e-06]
[1738955165278,0.762,97632.0,97612.0,0.2048207]
[1738955165471,0.3608,97613.0,97612.0,0.2048211]
[1738955166469,0.2048232,97611.0,97610.0,0.24482055]
[1738955168085,0.3608,97613.0,97603.0,0.00015367]
[1738955168265,0.3608,97613.0,97610.0,0.009]
[1738955168469,0.2048211,97612.0,97610.0,0.018]
[1738955169874,0.2048232,97611.0,97610.0,0.009]
[1738955170875,0.2048232,97611.0,97610.0,0.018]
[1738955171076,0.2048232,97611.0,97610.0,0.009]
[1738955171279,0.2048232,97611.0,97610.0,0.018]
[1738955171680,0.3608,97613.0,97603.0,0.00015367]
[1738955171982,0.5656379,97604.0,97603.0,0.00015367]
[1738955172976,0.5656379,97604.0,97603.0,0.00415367]
[1738955173580,0.5656379,97604.0,97603.0,0.01315367]
[1738955173982,0.3608,97604.0,97603.0,0.01315367]
[1738955174188,0.3608,97604.0,97603.0,0.21799367]
[1738955174383,0.3608,97604.0,97603.0,0.21399367]
[1738955174585,0.204819,97613.0,97609.0,0.2048272]
[1738955174779,0.36168001,97614.0,97604.0,0.1034]
[1738955174985,0.3608,97614.0,97613.0,0.204819]
[1738955175375,0.3608,97614.0,97605.0,0.1022]
[1738955175683,0.3608,97614.0,97607.0,0.2048306]
[1738955175986,0.3608,97614.0,97610.0,0.2048246]
[1738955176176,0.3608,97614.0,97613.0,0.004]
[1738955177482,0.5656169,97614.0,97613.0,0.004]
[1738955177687,0.5656169,97614.0,97613.0,0.002]
[1738955178390,0.5656169,97614.0,97613.0,0.006]
[1738955179107,0.5656169,97614.0,97613.0,0.004]
[1738955179308,0.5656169,97614.0,97613.0,0.008]
[1738955179906,0.5656169,97614.0,97613.0,0.004]
[1738955180100,0.5656169,97614.0,97613.0,0.007]
[1738955184512,0.5656169,97614.0,97603.0,0.00015367]
[1738955184513,0.2048379,97604.0,97603.0,0.00015367]
[1738955184700,0.5656379,97604.0,97603.0,0.00015367]
[1738955185704,0.5666379,97604.0,97603.0,0.00815367]
[1738955187210,0.5666379,97604.0,97603.0,0.01515367]
[1738955188005,0.5666379,97604.0,97603.0,0.21999367]
[1738955188309,0.3618,97604.0,97603.0,0.21999367]
[1738955188510,0.5666379,97604.0,97603.0,0.01515367]
[1738955192406,0.8666379,97604.0,97603.0,0.01515367]
[1738955192717,0.8666379,97604.0,97603.0,7e-08]
[1738955194206,0.3688,97604.0,97594.0,0.00015367]
[1738955194404,0.5656568,97595.0,97594.0,0.00015367]
[1738955195917,0.5696568,97595.0,97594.0,0.00015367]
[1738955196703,0.5696568,97595.0,97594.0,0.00011367]
[1738955197715,0.5716568,97595.0,97594.0,0.00011367]
[1738955198813,0.9324568,97595.0,97594.0,0.00011367]
[1738955199009,0.7276,97595.0,97576.0,0.1046]
[1738955199311,0.2048945,97577.0,97576.0,0.1046]
[1738955199712,0.3608,97579.0,97575.0,0.01187148]
[1738955199917,0.3608,97579.0,97570.0,0.1038]
[1738955199918,0.2049071,97571.0,97570.0,0.1038]
[1738955200115,0.5657071,97571.0,97570.0,0.1038]
[1738955200708,0.2049176,97566.0,97565.0,0.1097]
[1738955202120,0.2059176,97566.0,97565.0,0.1177]
[1738955202714,0.2069176,97566.0,97565.0,0.1207]
[1738955203919,0.2069176,97566.0,97565.0,0.011]
[1738955206122,0.2059176,97566.0,97565.0,0.003]
[1738955206319,0.2089176,97566.0,97565.0,0.003]
[1738955207618,0.2089176,97566.0,97561.0,0.00015367]
[1738955207619,0.204926,97562.0,97561.0,0.00015367]
[1738955209118,0.205926,97562.0,97561.0,0.00015367]
[1738955210527,0.001,97562.0,97561.0,0.00015367]
[1738955211025,0.004,97562.0,97561.0,0.00015367]
[1738955211613,0.001,97562.0,97561.0,0.00015367]
[1738955211819,0.004,97562.0,97561.0,0.00015367]
[1738955213622,0.1039,97562.0,97546.0,0.2094]
[1738955213831,0.3608,97548.0,97546.0,0.4143592]
[1738955214030,0.3608,97548.0,97546.0,0.4148792]
[1738955214725,0.3608,97548.0,97546.0,0.20992]
[1738955215029,0.3608,97548.0,97546.0,0.2094]
[1738955215228,0.3608,97548.0,97547.0,0.1047]
[1738955215734,0.3608,97548.0,97547.0,0.1077]
[1738955216723,0.7216,97548.0,97547.0,0.1077]
[1738955217523,0.9265554,97548.0,97547.0,0.1077]
[1738955218030,0.2049744,97539.0,97538.0,0.00015375]
[1738955218334,0.2050164,97519.0,97518.0,0.1006]
[1738955218540,0.5658164,97519.0,97518.0,0.1006]
[1738955219823,0.5668164,97519.0,97518.0,0.1096]
[1738955220331,0.5668164,97519.0,97518.0,0.009]
[1738955220728,0.6618,97519.0,97509.0,0.0001025]
[1738955220927,0.3608,97511.0,97500.0,0.1]
[1738955221126,0.2050534,97502.0,97500.0,0.1]
[1738955221321,0.3608,97501.0,97500.0,0.1]
[1738955221733,0.3608,97501.0,97500.0,0.11194567]
[1738955222532,0.3618,97501.0,97500.0,0.109]
[1738955223836,0.3628,97501.0,97490.0,0.0986]
[1738955224032,0.3628,97501.0,97447.0,0.38327349]
[1738955224033,0.3608,97456.0,97447.0,0.38327349]
[1738955224232,0.2051784,97442.0,97441.0,0.00052]
[1738955224437,0.3608,97442.0,97410.0,0.43899698]
[1738955224640,0.2052437,97411.0,97410.0,0.43847698]
[1738955224936,0.3608,97413.0,97410.0,0.43847698]
[1738955225926,0.56604,97413.0,97410.0,0.43847698]
[1738955226141,0.2052427,97412.0,97410.0,0.43847698]
[1738955226337,0.2052427,97412.0,97410.0,0.44147698]
[1738955227237,0.2052427,97412.0,97400.0,0.1]
[1738955227238,0.3608,97411.0,97400.0,0.08192]
[1738955227448,0.2053217,97374.0,97371.0,0.01028001]
[1738955227634,0.5661259,97372.0,97359.0,0.2053513]
[1738955227834,0.5661259,97372.0,97354.0,0.1077]
[1738955228035,0.5661259,97372.0,97354.0,0.11981648]
[1738955228335,0.5661259,97372.0,97360.0,0.18220448]
[1738955228538,0.3608,97372.0,97360.0,0.18220448]
[1738955228930,0.000154,97375.0,97369.0,0.2053311]
[1738955229339,0.001,97374.0,97370.0,0.01028001]
[1738955229538,0.001,97372.0,97370.0,0.01028001]
[1738955229843,1.03267549,97371.0,97370.0,0.01028001]
[1738955231131,1.03367549,97371.0,97370.0,0.01028001]
[1738955232034,0.67387549,97371.0,97366.0,0.5661382]
[1738955232237,0.67387549,97371.0,97367.0,0.2053345]
[1738955232932,0.67387549,97371.0,97366.0,0.3608]
[1738955232933,0.67387549,97371.0,97366.0,0.26826264]
[1738955233335,0.67387549,97371.0,97367.0,0.2053345]
[1738955233940,0.67187549,97370.0,97368.0,0.2053328]
[1738955234245,0.67187549,97370.0,97360.0,0.18220448]
[1738955234446,0.67187549,97370.0,97368.0,0.2053328]
[1738955234830,0.002,97371.0,97367.0,0.07532]
[1738955235145,0.47820608,97374.0,97367.0,0.07532]
[1738955235333,0.001,97370.0,97368.0,0.2053343]
[1738955235649,0.001,97370.0,97360.0,0.37404678]
[1738955235650,0.3608,97369.0,97360.0,0.00963782]
[1738955235946,0.3608,97361.0,97359.0,0.18220448]
[1738955236246,0.3608,97361.0,97350.0,0.18220448]
[1738955236435,0.3608,97351.0,97350.0,0.38757498]
[1738955236748,0.3608,97351.0,97345.0,0.2053826]
[1738955237744,0.3608,97351.0,97342.0,0.07528]
[1738955238043,0.3608,97343.0,97342.0,0.07528]
[1738955238438,0.3608,97343.0,97336.0,0.07524]
[1738955238637,0.3608,97343.0,97338.0,0.2053974]
[1738955239051,0.3608,97343.0,97335.0,0.0752]
[1738955239345,0.3608,97338.0,97320.0,0.18220448]
[1738955239543,0.2054395,97319.0,97318.0,0.00924107]
[1738955239847,0.2054395,97319.0,97302.0,0.1018]
[1738955239848,0.2054419,97318.0,97314.0,0.00930169]
[1738955240145,0.3608,97315.0,97308.0,0.18220448]
[1738955240344,0.2054613,97308.0,97302.0,0.1018]
[1738955240539,0.3608,97303.0,97302.0,0.11117935]
[1738955242148,0.3618,97303.0,97302.0,0.11117935]
[1738955242550,0.3618,97303.0,97302.0,0.11217935]
[1738955243239,0.3628,97303.0,97302.0,0.11217935]
[1738955243549,0.3628,97303.0,97301.0,0.16348224]
[1738955244746,0.3618,97303.0,97293.0,0.05110546]
[1738955244951,0.3628,97303.0,97301.0,0.2054747]
[1738955245458,0.3628,97303.0,97301.0,0.5054747]
[1738955245750,0.002,97303.0,97301.0,0.19714643]
[1738955245950,0.001,97303.0,97301.0,0.19714643]
[1738955246151,0.002,97303.0,97302.0,0.2054736]
[1738955246353,0.3608,97339.0,97304.0,0.0513671]
[1738955246651,0.3608,97339.0,97329.0,0.18220448]
[1738955247154,0.3608,97339.0,97333.0,0.2054071]
[1738955247352,0.3608,97339.0,97329.0,0.18220448]
[1738955248056,0.3608,97339.0,97330.0,0.2054124]
[1738955248256,0.3608,97339.0,97329.0,0.17179868]
[1738955248644,0.3608,97339.0,97330.0,0.2054124]
[1738955249138,0.3618,97339.0,97330.0,0.2054124]
[1738955249655,0.3618,97339.0,97326.0,0.00015409]
[1738955249853,0.3608,97331.0,97326.0,0.00015409]
[1738955250446,0.205419,97328.0,97326.0,0.00015409]
[1738955251051,0.3608,97327.0,97326.0,0.00015409]
[1738955251457,0.46365357,97327.0,97320.0,0.15]
[1738955251652,0.5662335,97321.0,97320.0,0.15]
[1738955253140,0.5682335,97321.0,97320.0,0.151]
[1738955254253,0.3628,97321.0,97320.0,0.151]
[1738955256055,0.3628,97321.0,97320.0,0.16036935]
[1738955256654,0.3628,97321.0,97320.0,0.16076935]
[1738955256857,0.46565357,97321.0,97320.0,0.1514]
[1738955258144,0.3628,97321.0,97320.0,0.1514]
[1738955258349,0.59143372,97321.0,97320.0,0.18545237]
[1738955258564,0.23063372,97321.0,97320.0,0.18545237]
[1738955258761,0.59143372,97321.0,97320.0,0.18545237]
[1738955258951,0.23063372,97321.0,97320.0,0.18545237]
[1738955259556,0.05194866,97321.0,97320.0,0.18545237]
[1738955260661,0.3608,97344.0,97343.0,0.205387]
[1738955261049,0.3608,97344.0,97334.0,0.18220448]
[1738955261359,0.3608,97335.0,97334.0,0.38761048]
[1738955261662,0.3608,97335.0,97334.0,0.205406]
[1738955261848,0.3608,97344.0,97343.0,0.205387]
[1738955262054,0.3648,97344.0,97343.0,0.205387]
[1738955262258,0.3678,97344.0,97343.0,0.205387]
[1738955262562,0.3638,97344.0,97343.0,0.205387]
[1738955264457,0.3668,97344.0,97343.0,0.205387]
[1738955264969,0.3638,97344.0,97343.0,0.205387]
[1738955265165,0.3608,97344.0,97343.0,0.205387]
[1738955265361,0.3608,97344.0,97343.0,0.207387]
[1738955267063,0.3608,97344.0,97343.0,0.21679526]
[1738955267570,0.5424856,97344.0,97343.0,0.21679526]
[1738955268867,0.1816856,97344.0,97343.0,0.21679526]
[1738955269068,0.20860852,97359.0,97355.0,0.2053617]
[1738955269368,0.18791852,97359.0,97357.0,0.2053575]
[1738955270263,0.36095409,97368.0,97367.0,0.2053364]
[1738955271061,0.00015409,97368.0,97361.0,0.3608]
[1738955271266,0.00015409,97368.0,97367.0,0.2053364]
[1738955271661,0.00915409,97368.0,97367.0,0.5053364]
[1738955271866,0.23840974,97377.0,97376.0,0.2053174]
[1738955272165,0.23840974,97377.0,97376.0,0.2816774]
[1738955272375,0.59920974,97377.0,97376.0,0.2816774]
[1738955272567,0.59920974,97377.0,97372.0,0.0764]
[1738955273572,0.15160085,97376.0,97372.0,0.0764]
[1738955273767,0.15160085,97376.0,97375.0,0.2053196]
[1738955275167,0.15160085,97376.0,97375.0,0.2093196]
[1738955275472,0.001,97377.0,97376.0,0.2053174]
[1738955275969,0.3608,97378.0,97377.0,0.2053153]
[1738955277865,0.3608,97378.0,97377.0,0.2103153]
[1738955278873,0.3618,97378.0,97377.0,0.2123153]
[1738955280268,0.001,97378.0,97377.0,0.2123153]
[1738955280470,0.3608,97391.0,97390.0,0.2052879]
[1738955280673,0.3608,97402.0,97399.0,0.205269]
[1738955281280,0.20285357,97400.0,97386.0,0.07576]
[1738955281469,0.3608,97389.0,97386.0,0.2810553]
[1738955281775,0.3608,97389.0,97388.0,0.2052921]
[1738955282774,0.3618,97389.0,97388.0,0.2052921]
[1738955284475,0.3628,97389.0,97388.0,0.21499636]
[1738955285069,0.3628,97389.0,97388.0,0.00970426]
[1738955285376,0.3628,97389.0,97383.0,0.00015401]
[1738955285772,0.3628,97389.0,97388.0,0.2052921]
[1738955286177,0.3628,97389.0,97383.0,0.00970109]
[1738955286381,0.67094507,97389.0,97383.0,0.00970109]
[1738955286768,0.67094507,97389.0,97383.0,0.00015401]
[1738955286769,0.5661006,97384.0,97383.0,0.00015401]
[1738955287271,0.66895417,97384.0,97383.0,0.00015401]
[1738955288675,0.66895417,97384.0,97383.0,0.00115401]
[1738955288981,0.66895417,97384.0,97383.0,0.00315401]
[1738955290786,0.3608,97384.0,97383.0,0.00315401]
[1738955290980,0.3608,97384.0,97383.0,0.01257745]
[1738955291176,0.3608,97384.0,97383.0,0.00315401]
[1738955293571,0.3608,97384.0,97383.0,0.21815377]
[1738955293883,0.1028,97399.0,97394.0,0.205279]
[1738955294180,0.46208,97400.0,97398.0,0.2052711]
[1738955294377,0.4608,97400.0,97399.0,0.205269]
[1738955294577,0.4608,97400.0,97394.0,0.2052788]
[1738955294879,0.4608,97400.0,97395.0,0.2052756]
[1738955295180,0.009,97399.0,97392.0,0.2052833]
[1738955295370,0.009,97399.0,97383.0,0.00985107]
[1738955295777,0.009,97399.0,97389.0,0.18220448]
[1738955296176,0.009,97399.0,97398.0,0.2052711]
[1738955296380,0.205292,97389.0,97372.0,0.205324]
[1738955296588,0.3608,97373.0,97370.0,0.12150878]
[1738955296785,0.3608,97373.0,97368.0,0.2053332]
[1738955297777,0.3618,97373.0,97370.0,0.003]
[1738955298077,0.3628,97373.0,97371.0,0.2053259]
[1738955298273,0.3628,97373.0,97372.0,0.2053259]
[1738955298879,0.3628,97373.0,97370.0,0.003]
[1738955298880,0.3608,97383.0,97370.0,0.003]
[1738955299083,0.205288,97390.0,97373.0,0.12150878]
[1738955299391,0.205288,97390.0,97379.0,0.2053111]
[1738955299591,0.3608,97384.0,97374.0,0.2053215]
[1738955299781,0.3608,97384.0,97368.0,0.02002168]
[1738955299782,0.3608,97375.0,97368.0,0.02002168]
[1738955300087,0.001,97373.0,97370.0,0.2103288]
[1738955300391,0.001,97373.0,97370.0,0.005]
[1738955300595,0.3608,97375.0,97368.0,0.01502168]
[1738955300782,0.3608,97375.0,97374.0,0.002]
[1738955301192,0.3608,97375.0,97374.0,0.2053217]
[1738955301687,0.00015401,97381.0,97380.0,0.205309]
[1738955304090,0.00015401,97381.0,97380.0,0.210309]
[1738955304291,0.00015401,97381.0,97380.0,0.005]
[1738955305189,0.00115401,97381.0,97380.0,0.005]
[1738955306291,0.00115401,97381.0,97380.0,0.004]
[1738955306486,0.00115401,97381.0,97370.0,0.30602059]
[1738955306800,0.566128,97371.0,97370.0,0.30602059]
[1738955307893,0.567128,97371.0,97370.0,0.31002059]
[1738955308284,0.567128,97371.0,97370.0,0.31202059]
[1738955308996,0.867128,97371.0,97370.0,0.14652059]
[1738955309193,0.87871796,97371.0,97370.0,0.12312059]
[1738955309404,0.87871796,97371.0,97370.0,0.006]
[1738955309693,0.57871796,97371.0,97370.0,0.004]
[1738955309897,0.68391796,97371.0,97370.0,0.009]
[1738955310099,0.68791796,97371.0,97370.0,0.005]
[1738955310595,0.676328,97371.0,97370.0,0.005]
[1738955310801,0.2053449,97365.0,97364.0,0.2053425]
[1738955311105,0.5661449,97365.0,97364.0,0.2053425]
[1738955311600,0.205347,97362.0,97361.0,0.00015401]
[1738955313295,0.205347,97362.0,97361.0,0.01216427]
[1738955313491,0.205347,97362.0,97361.0,0.00015401]
[1738955313697,0.208347,97362.0,97361.0,0.00015401]
[1738955314603,0.206347,97362.0,97361.0,0.00015401]
[1738955314803,0.208347,97362.0,97361.0,0.00015401]
[1738955315007,0.003,97362.0,97361.0,0.20550311]
[1738955315300,0.3608,97365.0,97361.0,0.01188375]
[1738955315491,0.15138728,97376.0,97361.0,0.01188375]
[1738955315691,0.15138728,97376.0,97375.0,0.56596474]
[1738955315900,0.09003609,97376.0,97375.0,0.56596474]
[1738955316506,0.09879609,97376.0,97375.0,0.56596474]
[1738955316897,0.00876,97376.0,97375.0,0.56596474]
[1738955317095,0.00976,97376.0,97375.0,0.44781875]
[1738955317792,0.00976,97376.0,97375.0,0.01485875]
[1738955318602,0.00976,97376.0,97375.0,0.22017835]
[1738955321607,0.00976,97376.0,97375.0,0.01485875]
[1738955322810,0.00976,97376.0,97375.0,0.22017835]
[1738955323212,0.00976,97376.0,97375.0,0.21917835]
[1738955323513,0.00876,97376.0,97375.0,0.22017835]
[1738955323916,0.3608,97392.0,97375.0,0.22017835]
[1738955323917,0.4608,97400.0,97391.0,0.2052858]
[1738955324103,0.4608,97400.0,97397.0,0.2052713]
[1738955324300,0.4608,97400.0,97398.0,0.30497]
[1738955324622,0.4608,97400.0,97384.0,0.3608]
[1738955324914,0.4608,97400.0,97350.0,0.12147256]
[1738955324915,0.3608,97391.0,97380.0,0.12147256]
[1738955325109,0.3608,97391.0,97389.0,0.2052893]
[1738955325303,0.46212,97400.0,97393.0,0.2052807]
[1738955325506,0.4608,97400.0,97394.0,0.2052788]
[1738955326013,0.4688,97400.0,97394.0,0.2052788]
[1738955326515,0.4608,97400.0,97394.0,0.2052788]
[1738955326810,0.4678,97400.0,97394.0,0.2052788]
[1738955327014,0.4738,97400.0,97398.0,0.001]
[1738955327216,0.6790687,97400.0,97398.0,0.001]
[1738955327617,0.2052774,97395.0,97394.0,0.001]
[1738955328120,0.47512,97400.0,97387.0,0.2052937]
[1738955328311,0.6790673,97400.0,97398.0,0.001]
[1738955328712,0.2053027,97383.0,97382.0,0.00015401]
[1738955328910,0.7216,97383.0,97364.0,0.1085]
[1738955329120,0.3608,97368.0,97364.0,0.1085]
[1738955329320,0.3608,97368.0,97364.0,0.12005104]
[1738955329515,0.5661361,97368.0,97364.0,0.12005104]
[1738955330321,0.2053367,97367.0,97364.0,0.12005104]
[1738955330619,0.04108,97367.0,97364.0,0.12005104]
[1738955330812,0.2464167,97367.0,97364.0,0.12005104]
[1738955331208,0.2053385,97366.0,97364.0,0.12005104]
[1738955331414,0.04108,97367.0,97365.0,0.2053386]
[1738955331814,0.04208,97367.0,97365.0,0.2053386]
[1738955332208,0.04108,97367.0,97365.0,0.2053386]
[1738955332412,0.001,97366.0,97364.0,0.12005104]
[1738955332620,0.001,97366.0,97365.0,0.001]
[1738955333922,0.04108,97367.0,97365.0,0.001]
[1738955335029,0.04108,97367.0,97366.0,0.2053385]
[1738955336211,0.3608,97388.0,97379.0,0.2053111]
[1738955336415,0.3608,97399.0,97374.0,0.07516]
[1738955336821,0.36127,97399.0,97374.0,0.07516]
[1738955337223,0.36127,97399.0,97393.0,0.2052815]
[1738955337424,0.002,97380.0,97379.0,0.5661111]
[1738955338012,0.00015401,97396.0,97390.0,0.2052875]
[1738955338211,0.00015401,97396.0,97391.0,0.2052855]
[1738955338618,0.00015401,97396.0,97379.0,0.3628]
[1738955338820,0.00015401,97396.0,97392.0,0.2052833]
[1738955339018,0.00015401,97396.0,97379.0,0.3628]
[1738955339217,0.00015401,97396.0,97394.0,0.2052791]
[1738955339423,0.00415401,97396.0,97395.0,0.1088]
[1738955340222,0.00915401,97396.0,97395.0,0.4696]
[1738955340720,0.00415401,97396.0,97395.0,0.4696]
[1738955341027,0.00915401,97396.0,97395.0,0.4696]
[1738955341721,0.18162781,97419.0,97395.0,0.4696]
[1738955341927,0.18162781,97419.0,97411.0,0.2052428]
[1738955342112,0.18162781,97419.0,97413.0,0.2052383]
[1738955342725,0.18162781,97419.0,97407.0,0.07512]
[1738955343022,0.19062781,97419.0,97418.0,0.2052289]
[1738955343419,0.19962781,97419.0,97418.0,0.2052289]
[1738955343917,0.018,97419.0,97418.0,0.2052289]
[1738955344521,0.009,97419.0,97418.0,0.2803489]
[1738955344823,0.009,97419.0,97418.0,0.29247344]
[1738955345025,0.00015401,97426.0,97423.0,0.2052184]
[1738955345223,0.04105,97425.0,97423.0,0.2052184]
[1738955345425,0.0394135,97425.0,97424.0,0.2052163]
[1738955345626,0.0394135,97425.0,97424.0,0.5660163]
[1738955345822,0.00015401,97426.0,97425.0,0.2052142]
[1738955346126,0.18162781,97439.0,97438.0,0.2051868]
[1738955347918,0.18162781,97439.0,97434.0,0.07512]
[1738955347919,0.00010157,97448.0,97439.0,0.2051846]
[1738955348129,0.3608,97445.0,97438.0,0.006]
[1738955348521,0.3608,97445.0,97440.0,0.205182]
[1738955348715,0.3608,97445.0,97438.0,0.006]
[1738955348924,0.2051771,97443.0,97438.0,0.002]
[1738955349130,0.3608,97445.0,97438.0,0.002]
[1738955349627,0.3608,97445.0,97435.0,0.12133326]
[1738955349824,0.3608,97437.0,97435.0,0.12133326]
[1738955350023,0.3608,97437.0,97435.0,0.2051931]
[1738955350419,0.3608,97437.0,97429.0,0.07527401]